[Event "Early-Titled-Tuesday-Blitz-September-05-2023"]
[Site "Chess.com"]
[Date "2023.09.05"]
[Round "6"]
[White "sebastianmarinp"]
[Black "ural58"]
[Result "0-1"]
[WhiteElo "2396"]
[BlackElo "2518"]
[TimeControl "180+1"]
[EndTime "9:06:48 PDT"]
[Termination "ural58 won by resignation"]

1. d4 {[%clk 0:03:00]} 1... d5 {[%clk 0:02:47.2]} 2. c4 {[%clk 0:02:59.7]} 2...
e5 {[%clk 0:02:46.6]} 3. dxe5 {[%clk 0:02:57.8]} 3... d4 {[%clk 0:02:46.5]} 4.
Nf3 {[%clk 0:02:56.4]} 4... Nc6 {[%clk 0:02:45.9]} 5. g3 {[%clk 0:02:54]} 5...
Nge7 {[%clk 0:02:45.4]} 6. Bg2 {[%clk 0:02:54.1]} 6... Ng6 {[%clk 0:02:42.7]} 7.
O-O {[%clk 0:02:53.3]} 7... Ngxe5 {[%clk 0:02:30.2]} 8. Nxe5 {[%clk 0:02:52.9]}
8... Nxe5 {[%clk 0:02:24.7]} 9. b3 {[%clk 0:02:46.2]} 9... Be7 {[%clk 0:02:15]}
10. Bb2 {[%clk 0:02:45.6]} 10... c5 {[%clk 0:02:15]} 11. h3 {[%clk 0:02:30.5]}
11... O-O {[%clk 0:02:03.8]} 12. e3 {[%clk 0:02:29.7]} 12... Nc6 {[%clk
0:02:01.6]} 13. exd4 {[%clk 0:02:20.9]} 13... Nxd4 {[%clk 0:02:00.2]} 14. Nc3
{[%clk 0:02:14.9]} 14... Be6 {[%clk 0:01:24.6]} 15. Nd5 {[%clk 0:02:04.6]} 15...
Bxd5 {[%clk 0:01:24.6]} 16. Bxd5 {[%clk 0:01:55.2]} 16... Qc7 {[%clk 0:01:24.7]}
17. Bxd4 {[%clk 0:01:49.3]} 17... cxd4 {[%clk 0:01:24.4]} 18. Qf3 {[%clk
0:01:48.8]} 18... Rab8 {[%clk 0:01:20.8]} 19. Rae1 {[%clk 0:01:43.7]} 19... Bf6
{[%clk 0:01:20.2]} 20. Re4 {[%clk 0:01:37.4]} 20... b5 {[%clk 0:01:18.4]} 21.
Rfe1 {[%clk 0:01:34.8]} 21... bxc4 {[%clk 0:01:18.4]} 22. Bxc4 {[%clk
0:01:29.8]} 22... a5 {[%clk 0:01:15.2]} 23. g4 {[%clk 0:01:21.7]} 23... h6
{[%clk 0:01:14]} 24. Rf4 {[%clk 0:01:18.3]} 24... Qd6 {[%clk 0:01:11.7]} 25. Rf5
{[%clk 0:01:15.6]} 25... a4 {[%clk 0:01:09.5]} 26. Rd5 {[%clk 0:01:12]} 26...
Qb4 {[%clk 0:01:02.2]} 27. Re4 {[%clk 0:01:04.8]} 27... Qd2 {[%clk 0:00:56.7]}
28. Re2 {[%clk 0:01:00.7]} 28... Qd1+ {[%clk 0:00:44.8]} 29. Kg2 {[%clk
0:01:00.8]} 29... a3 {[%clk 0:00:45]} 30. Rd7 {[%clk 0:00:55.1]} 30... Qb1
{[%clk 0:00:27.9]} 31. Qd3 {[%clk 0:00:44.3]} 31... Qxd3 {[%clk 0:00:26.9]} 32.
Bxd3 {[%clk 0:00:45.2]} 32... Ra8 {[%clk 0:00:17.6]} 33. Bc4 {[%clk 0:00:43]}
33... Ra5 {[%clk 0:00:12.6]} 34. f4 {[%clk 0:00:39.6]} 34... Rc5 {[%clk
0:00:10.2]} 35. Kf3 {[%clk 0:00:36.1]} 35... g6 {[%clk 0:00:09.3]} 36. Kg3
{[%clk 0:00:23.3]} 36... Bg7 {[%clk 0:00:09.2]} 37. h4 {[%clk 0:00:20.4]} 37...
Rcc8 {[%clk 0:00:09.3]} 38. Ree7 {[%clk 0:00:20]} 38... d3 {[%clk 0:00:07.1]}
39. Rxd3 {[%clk 0:00:17.4]} 39... Bf6 {[%clk 0:00:05]} 40. Ra7 {[%clk
0:00:15.8]} 40... Ra8 {[%clk 0:00:04.5]} 41. Rdd7 {[%clk 0:00:14.4]} 41... Rxa7
{[%clk 0:00:04.3]} 42. Rxa7 {[%clk 0:00:15.3]} 42... Bb2 {[%clk 0:00:04.3]} 43.
g5 {[%clk 0:00:12.1]} 43... hxg5 {[%clk 0:00:04.1]} 44. hxg5 {[%clk 0:00:12.9]}
44... Kg7 {[%clk 0:00:03.3]} 45. Kg4 {[%clk 0:00:12.6]} 45... Bd4 {[%clk
0:00:03.2]} 46. f5 {[%clk 0:00:12.2]} 46... Bxa7 {[%clk 0:00:02.6]} 47. f6+
{[%clk 0:00:11.3]} 47... Kg8 {[%clk 0:00:03.2]} 48. b4 {[%clk 0:00:09.4]} 48...
Rd8 {[%clk 0:00:04.1]} 0-1

[Event "Early-Titled-Tuesday-Blitz-September-05-2023"]
[Site "Chess.com"]
[Date "2023.09.05"]
[Round "6"]
[White "AdrianaPalao"]
[Black "UmarovSabir"]
[Result "0-1"]
[WhiteElo "2052"]
[BlackElo "2328"]
[TimeControl "180+1"]
[EndTime "9:06:48 PDT"]
[Termination "UmarovSabir won by resignation"]

1. e4 {[%clk 0:02:58.1]} 1... g6 {[%clk 0:02:58.3]} 2. d4 {[%clk 0:02:57.8]}
2... Bg7 {[%clk 0:02:58.9]} 3. Nc3 {[%clk 0:02:58.4]} 3... c6 {[%clk 0:02:59.4]}
4. Be3 {[%clk 0:02:58.9]} 4... d5 {[%clk 0:02:58.1]} 5. e5 {[%clk 0:02:58.7]}
5... f6 {[%clk 0:02:57.9]} 6. f4 {[%clk 0:02:57]} 6... Nh6 {[%clk 0:02:57.4]} 7.
h3 {[%clk 0:02:55.6]} 7... Qb6 {[%clk 0:02:52.3]} 8. Qd2 {[%clk 0:02:50.5]} 8...
Qxb2 {[%clk 0:02:48.1]} 9. Rb1 {[%clk 0:02:50.4]} 9... Qa3 {[%clk 0:02:46.9]}
10. Bd3 {[%clk 0:02:25.6]} 10... O-O {[%clk 0:02:42.9]} 11. Nf3 {[%clk
0:02:17.4]} 11... b5 {[%clk 0:02:27.9]} 12. Bxb5 {[%clk 0:01:53.7]} 12... cxb5
{[%clk 0:02:21.2]} 13. Nxb5 {[%clk 0:01:54.6]} 13... Qxa2 {[%clk 0:02:20.9]} 14.
O-O {[%clk 0:01:54.3]} 14... Qc4 {[%clk 0:02:01.7]} 15. Rb4 {[%clk 0:01:44.9]}
15... Qc6 {[%clk 0:01:59.7]} 16. g4 {[%clk 0:01:31.7]} 16... Nf7 {[%clk
0:01:49.2]} 17. c4 {[%clk 0:01:06.8]} 17... a5 {[%clk 0:01:38.8]} 18. cxd5
{[%clk 0:00:59.2]} 18... Qxd5 {[%clk 0:01:35]} 19. Rb2 {[%clk 0:00:55]} 19...
Qd7 {[%clk 0:00:54.5]} 20. e6 {[%clk 0:00:39.5]} 20... Qxe6 {[%clk 0:00:53.9]}
21. Nc7 {[%clk 0:00:39.6]} 21... Qe4 {[%clk 0:00:52.2]} 22. Nxa8 {[%clk
0:00:25.3]} 22... Qxa8 {[%clk 0:00:52.3]} 23. Rfb1 {[%clk 0:00:24]} 23... Nc6
{[%clk 0:00:51.5]} 24. d5 {[%clk 0:00:24.7]} 24... Nb4 {[%clk 0:00:51.2]} 25.
Bc5 {[%clk 0:00:24]} 25... Nxd5 {[%clk 0:00:47.7]} 26. Rb8 {[%clk 0:00:24.3]}
26... Qc6 {[%clk 0:00:47.2]} 27. Rc1 {[%clk 0:00:20.9]} 27... Qd7 {[%clk
0:00:20.7]} 28. Ba3 {[%clk 0:00:17.9]} 28... Bb7 {[%clk 0:00:12.2]} 29. Rxf8+
{[%clk 0:00:16.9]} 29... Bxf8 {[%clk 0:00:12.1]} 30. Rd1 {[%clk 0:00:17.1]}
30... e6 {[%clk 0:00:10.9]} 31. f5 {[%clk 0:00:17]} 31... Bxa3 {[%clk
0:00:10.2]} 32. fxe6 {[%clk 0:00:15.1]} 32... Qxe6 {[%clk 0:00:10.4]} 33. Nd4
{[%clk 0:00:14.9]} 33... Qe3+ {[%clk 0:00:09.5]} 34. Qxe3 {[%clk 0:00:14.1]}
34... Nxe3 {[%clk 0:00:10.4]} 35. Rd3 {[%clk 0:00:13.5]} 35... Nc4 {[%clk
0:00:10.1]} 36. Ne6 {[%clk 0:00:12.4]} 36... Bd5 {[%clk 0:00:09.9]} 37. Rxd5
{[%clk 0:00:11.7]} 37... Nfe5 {[%clk 0:00:08.8]} 38. Nd8 {[%clk 0:00:10.1]}
38... Kg7 {[%clk 0:00:08.5]} 39. Rb5 {[%clk 0:00:08.5]} 39... Bb4 {[%clk
0:00:08.1]} 40. Rb7+ {[%clk 0:00:08.9]} 40... Kh6 {[%clk 0:00:08.1]} 41. Ne6
{[%clk 0:00:06.1]} 41... Bd2 {[%clk 0:00:04.5]} 42. Kf1 {[%clk 0:00:05.7]} 42...
Be3 {[%clk 0:00:04.6]} 43. Ke2 {[%clk 0:00:05.1]} 43... a4 {[%clk 0:00:04.7]}
44. Nd8 {[%clk 0:00:02.9]} 44... a3 {[%clk 0:00:05.1]} 45. Nf7+ {[%clk
0:00:03.3]} 45... Nxf7 {[%clk 0:00:05.3]} 46. Rxf7 {[%clk 0:00:04.2]} 46... Bd4
{[%clk 0:00:04.7]} 47. Rb7 {[%clk 0:00:03.5]} 47... a2 {[%clk 0:00:04.2]} 48.
Kd3 {[%clk 0:00:01.8]} 48... a1=Q {[%clk 0:00:05.1]} 49. Kxc4 {[%clk 0:00:02.6]}
49... Be5 {[%clk 0:00:05.1]} 0-1

[Event "Early-Titled-Tuesday-Blitz-September-05-2023"]
[Site "Chess.com"]
[Date "2023.09.05"]
[Round "6"]
[White "Gareth-Bale11"]
[Black "tteshan"]
[Result "1-0"]
[WhiteElo "2787"]
[BlackElo "2564"]
[TimeControl "180+1"]
[EndTime "9:06:50 PDT"]
[Termination "Gareth-Bale11 won by resignation"]

1. Nf3 {[%clk 0:02:53.2]} 1... c5 {[%clk 0:02:59.9]} 2. g3 {[%clk 0:02:51.1]}
2... Nc6 {[%clk 0:02:59.8]} 3. Bg2 {[%clk 0:02:52]} 3... g6 {[%clk 0:03:00.2]}
4. c4 {[%clk 0:02:50.9]} 4... Bg7 {[%clk 0:03:00.5]} 5. Nc3 {[%clk 0:02:51.8]}
5... e6 {[%clk 0:03:00.8]} 6. Rb1 {[%clk 0:02:47.8]} 6... Nge7 {[%clk
0:03:00.1]} 7. a3 {[%clk 0:02:48.2]} 7... O-O {[%clk 0:02:57.1]} 8. b4 {[%clk
0:02:47.9]} 8... cxb4 {[%clk 0:02:39.6]} 9. axb4 {[%clk 0:02:47.5]} 9... d5
{[%clk 0:02:40]} 10. cxd5 {[%clk 0:02:45.2]} 10... Nxd5 {[%clk 0:02:33.5]} 11.
Nxd5 {[%clk 0:02:37.2]} 11... Qxd5 {[%clk 0:02:33]} 12. d3 {[%clk 0:02:30.4]}
12... Bd7 {[%clk 0:02:08.3]} 13. O-O {[%clk 0:02:27.5]} 13... Qd6 {[%clk
0:02:01.3]} 14. b5 {[%clk 0:02:24.8]} 14... Ne7 {[%clk 0:01:31.4]} 15. Qb3
{[%clk 0:02:22.4]} 15... Qd5 {[%clk 0:01:27.7]} 16. Ba3 {[%clk 0:02:15.4]} 16...
Qxb3 {[%clk 0:01:24.2]} 17. Rxb3 {[%clk 0:02:16.3]} 17... Rfe8 {[%clk
0:01:24.6]} 18. Ng5 {[%clk 0:02:12]} 18... Nd5 {[%clk 0:01:21.9]} 19. Ne4 {[%clk
0:02:11]} 19... Rec8 {[%clk 0:01:15.7]} 20. Nc5 {[%clk 0:01:58.4]} 20... Rc7
{[%clk 0:01:11.6]} 21. Nxd7 {[%clk 0:01:57.9]} 21... Rxd7 {[%clk 0:01:12.5]} 22.
Rc1 {[%clk 0:01:58.2]} 22... Bf8 {[%clk 0:01:06]} 23. Bb2 {[%clk 0:01:57.5]}
23... Bg7 {[%clk 0:01:00.8]} 24. d4 {[%clk 0:01:57.9]} 24... Kf8 {[%clk
0:00:58.9]} 25. h4 {[%clk 0:01:49.4]} 25... Ke8 {[%clk 0:00:56.7]} 26. h5 {[%clk
0:01:43.9]} 26... gxh5 {[%clk 0:00:51.7]} 27. Be4 {[%clk 0:01:38.8]} 27... h6
{[%clk 0:00:50.6]} 28. Kg2 {[%clk 0:01:35.9]} 28... Nf6 {[%clk 0:00:42.1]} 29.
Bf3 {[%clk 0:01:35]} 29... Kd8 {[%clk 0:00:35.6]} 30. e4 {[%clk 0:01:30.7]}
30... Rc8 {[%clk 0:00:35.1]} 31. Rxc8+ {[%clk 0:01:04.6]} 31... Kxc8 {[%clk
0:00:36]} 32. d5 {[%clk 0:01:05.5]} 32... exd5 {[%clk 0:00:32.7]} 33. exd5
{[%clk 0:01:04]} 33... Kd8 {[%clk 0:00:26.5]} 34. Be5 {[%clk 0:00:55.6]} 34...
Ne8 {[%clk 0:00:26.1]} 35. Bb8 {[%clk 0:00:47.4]} 35... a6 {[%clk 0:00:22.8]}
36. b6 {[%clk 0:00:37.2]} 36... Nd6 {[%clk 0:00:22.4]} 37. Bxh5 {[%clk
0:00:31.4]} 37... Nc4 {[%clk 0:00:21.6]} 38. Rb4 {[%clk 0:00:21.6]} 38... Ne5
{[%clk 0:00:20.1]} 39. Bc7+ {[%clk 0:00:15.2]} 39... Ke7 {[%clk 0:00:19.1]} 40.
d6+ {[%clk 0:00:14]} 40... Kf6 {[%clk 0:00:16.5]} 41. f4 {[%clk 0:00:13.2]}
41... Nc6 {[%clk 0:00:16.1]} 42. Rb1 {[%clk 0:00:12.8]} 42... Nd4 {[%clk
0:00:13]} 43. Rd1 {[%clk 0:00:11.1]} 43... Ne6 {[%clk 0:00:13]} 44. Bf3 {[%clk
0:00:10.9]} 44... Nc5 {[%clk 0:00:13.2]} 45. Rc1 {[%clk 0:00:10.3]} 45... Nd3
{[%clk 0:00:08.8]} 46. Rd1 {[%clk 0:00:10.5]} 46... Nc5 {[%clk 0:00:08.7]} 47.
Rd5 {[%clk 0:00:10.6]} 47... Ne6 {[%clk 0:00:08.7]} 48. Ra5 {[%clk 0:00:10.3]}
48... Nd8 {[%clk 0:00:06.8]} 49. Ra2 {[%clk 0:00:07.6]} 49... Kg6 {[%clk
0:00:05.9]} 50. g4 {[%clk 0:00:07.5]} 50... Bd4 {[%clk 0:00:05.9]} 51. Rd2
{[%clk 0:00:07.1]} 51... Bc5 {[%clk 0:00:05.9]} 52. Rd5 {[%clk 0:00:07.3]} 52...
Ne6 {[%clk 0:00:05.7]} 53. f5+ {[%clk 0:00:07.7]} 53... Kf6 {[%clk 0:00:05.7]}
54. fxe6 {[%clk 0:00:08.6]} 1-0

[Event "Early-Titled-Tuesday-Blitz-September-05-2023"]
[Site "Chess.com"]
[Date "2023.09.05"]
[Round "6"]
[White "GeorgiosSouleidis"]
[Black "EddieUrquhart"]
[Result "1/2-1/2"]
[WhiteElo "2533"]
[BlackElo "2390"]
[TimeControl "180+1"]
[EndTime "9:06:54 PDT"]
[Termination "Game drawn by repetition"]

1. e4 {[%clk 0:03:00.9]} 1... c5 {[%clk 0:02:59.8]} 2. Nf3 {[%clk 0:03:00.6]}
2... e6 {[%clk 0:03:00.1]} 3. g3 {[%clk 0:02:59.9]} 3... Nc6 {[%clk 0:02:59.8]}
4. Bg2 {[%clk 0:03:00]} 4... Nge7 {[%clk 0:03:00]} 5. O-O {[%clk 0:03:00.1]}
5... g6 {[%clk 0:02:58.8]} 6. d4 {[%clk 0:02:59.7]} 6... cxd4 {[%clk 0:02:59.7]}
7. Nxd4 {[%clk 0:03:00.3]} 7... a6 {[%clk 0:03:00.4]} 8. Nb3 {[%clk 0:02:57.5]}
8... Bg7 {[%clk 0:02:58]} 9. Nc3 {[%clk 0:02:56.2]} 9... O-O {[%clk 0:02:57.6]}
10. Re1 {[%clk 0:02:53.2]} 10... d6 {[%clk 0:02:55.4]} 11. Bf4 {[%clk
0:02:52.6]} 11... Ne5 {[%clk 0:02:54.5]} 12. a4 {[%clk 0:02:44.6]} 12... b6
{[%clk 0:02:45.9]} 13. Qe2 {[%clk 0:02:33.4]} 13... Bb7 {[%clk 0:02:44.7]} 14.
Rad1 {[%clk 0:02:32.3]} 14... Qc7 {[%clk 0:02:44.9]} 15. h3 {[%clk 0:02:21.6]}
15... Rac8 {[%clk 0:02:40.8]} 16. g4 {[%clk 0:02:17.9]} 16... Rfd8 {[%clk
0:02:38.6]} 17. Bc1 {[%clk 0:02:07]} 17... N7c6 {[%clk 0:02:31.2]} 18. f4 {[%clk
0:02:03.8]} 18... Nd7 {[%clk 0:02:31.2]} 19. Kh1 {[%clk 0:02:01.5]} 19... Nc5
{[%clk 0:02:30.3]} 20. Nxc5 {[%clk 0:01:55.3]} 20... dxc5 {[%clk 0:02:30.5]} 21.
Qf2 {[%clk 0:01:39]} 21... Rxd1 {[%clk 0:02:22.6]} 22. Rxd1 {[%clk 0:01:39.1]}
22... Rd8 {[%clk 0:02:23.2]} 23. Rxd8+ {[%clk 0:01:27.1]} 23... Qxd8 {[%clk
0:02:24.1]} 24. e5 {[%clk 0:01:23.5]} 24... Qd7 {[%clk 0:02:11.6]} 25. Be3
{[%clk 0:01:19.6]} 25... g5 {[%clk 0:01:54.3]} 26. fxg5 {[%clk 0:01:07]} 26...
Nxe5 {[%clk 0:01:44.1]} 27. Ne4 {[%clk 0:00:59]} 27... Nc4 {[%clk 0:01:28.1]}
28. Nf6+ {[%clk 0:00:24.9]} 28... Bxf6 {[%clk 0:01:27.8]} 29. gxf6 {[%clk
0:00:25.6]} 29... Nxe3 {[%clk 0:01:06.6]} 30. Qxe3 {[%clk 0:00:25.1]} 30... Qd1+
{[%clk 0:01:00.1]} 31. Kh2 {[%clk 0:00:25.2]} 31... Qd6+ {[%clk 0:00:55.1]} 32.
Kg1 {[%clk 0:00:22.4]} 32... Qd1+ {[%clk 0:00:47.9]} 33. Bf1 {[%clk 0:00:22.4]}
33... Qd4 {[%clk 0:00:42.5]} 34. Kf2 {[%clk 0:00:19.6]} 34... Qxf6+ {[%clk
0:00:40.9]} 35. Ke1 {[%clk 0:00:16.8]} 35... Qd4 {[%clk 0:00:27.5]} 36. Qg5+
{[%clk 0:00:14.7]} 36... Kf8 {[%clk 0:00:28]} 37. Bd3 {[%clk 0:00:14]} 37... Be4
{[%clk 0:00:16.9]} 38. Bxa6 {[%clk 0:00:07.4]} 38... Qg1+ {[%clk 0:00:15.4]} 39.
Kd2 {[%clk 0:00:08]} 39... Qd4+ {[%clk 0:00:15.3]} 40. Ke1 {[%clk 0:00:08.3]}
40... Bg6 {[%clk 0:00:10.2]} 41. c3 {[%clk 0:00:06.4]} 41... Qe4+ {[%clk
0:00:09]} 42. Kd2 {[%clk 0:00:05.9]} 42... Qg2+ {[%clk 0:00:07.8]} 43. Be2
{[%clk 0:00:04.6]} 43... Qxh3 {[%clk 0:00:07.6]} 44. Qd8+ {[%clk 0:00:04.4]}
44... Kg7 {[%clk 0:00:08.1]} 45. Qxb6 {[%clk 0:00:03.3]} 45... Qg3 {[%clk
0:00:01.6]} 46. Qxc5 {[%clk 0:00:03.3]} 46... Qf4+ {[%clk 0:00:01.8]} 47. Qe3
{[%clk 0:00:03.3]} 47... Qxa4 {[%clk 0:00:01.8]} 48. Qd4+ {[%clk 0:00:03.3]}
48... Qxd4+ {[%clk 0:00:02.2]} 49. cxd4 {[%clk 0:00:04.2]} 49... Kf6 {[%clk
0:00:02.6]} 50. b4 {[%clk 0:00:04.7]} 50... Ke7 {[%clk 0:00:03.1]} 51. Ke3
{[%clk 0:00:04.6]} 51... Kd6 {[%clk 0:00:04]} 52. Kf4 {[%clk 0:00:04.7]} 52...
h6 {[%clk 0:00:03.9]} 53. Ke3 {[%clk 0:00:04.2]} 53... f6 {[%clk 0:00:04.4]} 54.
Bc4 {[%clk 0:00:04.3]} 54... Be8 {[%clk 0:00:04.4]} 55. Kf4 {[%clk 0:00:03.5]}
55... Bd7 {[%clk 0:00:04]} 56. Ke3 {[%clk 0:00:03.6]} 56... Be8 {[%clk
0:00:04.3]} 57. Kf4 {[%clk 0:00:03.1]} 57... Bd7 {[%clk 0:00:04.9]} 58. Ke3
{[%clk 0:00:03.5]} 58... Be8 {[%clk 0:00:05.5]} 1/2-1/2

[Event "Early-Titled-Tuesday-Blitz-September-05-2023"]
[Site "Chess.com"]
[Date "2023.09.05"]
[Round "6"]
[White "ejam94"]
[Black "lamomiajunior"]
[Result "0-1"]
[WhiteElo "2532"]
[BlackElo "2690"]
[TimeControl "180+1"]
[EndTime "9:06:55 PDT"]
[Termination "lamomiajunior won on time"]

1. e4 {[%clk 0:02:58.3]} 1... c6 {[%clk 0:03:00.4]} 2. e5 {[%clk 0:02:59.2]}
2... d6 {[%clk 0:02:53.2]} 3. exd6 {[%clk 0:02:58.8]} 3... exd6 {[%clk
0:02:54.1]} 4. c4 {[%clk 0:02:54.8]} 4... g6 {[%clk 0:02:50.5]} 5. Nf3 {[%clk
0:02:53.9]} 5... Bg7 {[%clk 0:02:51.2]} 6. d4 {[%clk 0:02:54]} 6... Ne7 {[%clk
0:02:51.2]} 7. g3 {[%clk 0:02:52.4]} 7... O-O {[%clk 0:02:51.8]} 8. Bg2 {[%clk
0:02:52.8]} 8... d5 {[%clk 0:02:50.5]} 9. cxd5 {[%clk 0:02:52.6]} 9... Nxd5
{[%clk 0:02:50.8]} 10. O-O {[%clk 0:02:53]} 10... Bg4 {[%clk 0:02:50.9]} 11. Nc3
{[%clk 0:02:50.1]} 11... Na6 {[%clk 0:02:47.7]} 12. h3 {[%clk 0:02:49.4]} 12...
Bxf3 {[%clk 0:02:47.5]} 13. Bxf3 {[%clk 0:02:48.1]} 13... Nac7 {[%clk
0:02:48.3]} 14. Kg2 {[%clk 0:02:37.1]} 14... Qd7 {[%clk 0:02:47.5]} 15. Nxd5
{[%clk 0:02:32.3]} 15... Nxd5 {[%clk 0:02:47.3]} 16. Qd3 {[%clk 0:02:28.7]}
16... Rad8 {[%clk 0:02:45.9]} 17. Bd2 {[%clk 0:02:28.3]} 17... Nc7 {[%clk
0:02:42.5]} 18. Bg5 {[%clk 0:02:21.2]} 18... Qxd4 {[%clk 0:02:37.3]} 19. Qb3
{[%clk 0:02:14.7]} 19... Rb8 {[%clk 0:02:29.1]} 20. Bf4 {[%clk 0:02:08.2]} 20...
Rbc8 {[%clk 0:02:04.9]} 21. Qxb7 {[%clk 0:01:59.1]} 21... Ne6 {[%clk 0:02:05.2]}
22. Be3 {[%clk 0:01:54.1]} 22... Qxb2 {[%clk 0:02:00.3]} 23. Qxb2 {[%clk
0:01:40]} 23... Bxb2 {[%clk 0:01:59.9]} 24. Rab1 {[%clk 0:01:40.7]} 24... Bd4
{[%clk 0:01:59.6]} 25. Bxd4 {[%clk 0:01:39.4]} 25... Nxd4 {[%clk 0:02:00.1]} 26.
Rb7 {[%clk 0:01:39.5]} 26... a5 {[%clk 0:01:56.4]} 27. Rc1 {[%clk 0:01:37.4]}
27... Rfd8 {[%clk 0:01:45.8]} 28. Ra7 {[%clk 0:01:34]} 28... c5 {[%clk 0:01:28]}
29. Rxa5 {[%clk 0:01:17.6]} 29... c4 {[%clk 0:01:28.2]} 30. Rc3 {[%clk
0:01:15.2]} 30... Nf5 {[%clk 0:00:51.3]} 31. Bd5 {[%clk 0:01:06.9]} 31... Nd6
{[%clk 0:00:51.2]} 32. a4 {[%clk 0:00:57.4]} 32... Kg7 {[%clk 0:00:48.3]} 33.
Ra7 {[%clk 0:00:54.5]} 33... Rc5 {[%clk 0:00:46.5]} 34. Bf3 {[%clk 0:00:50.6]}
34... Rb8 {[%clk 0:00:47]} 35. Ra6 {[%clk 0:00:36.6]} 35... Rd8 {[%clk
0:00:21.7]} 36. Rb6 {[%clk 0:00:30.1]} 36... Kf6 {[%clk 0:00:18.6]} 37. Rc1
{[%clk 0:00:26]} 37... c3 {[%clk 0:00:16.1]} 38. Rb3 {[%clk 0:00:19.2]} 38... c2
{[%clk 0:00:14.9]} 39. Rb2 {[%clk 0:00:16.7]} 39... Rdc8 {[%clk 0:00:15.4]} 40.
Be2 {[%clk 0:00:10.4]} 40... Nf5 {[%clk 0:00:15]} 41. Bd3 {[%clk 0:00:08.8]}
41... Nd4 {[%clk 0:00:15.8]} 42. Rb4 {[%clk 0:00:07.5]} 42... Ke5 {[%clk
0:00:14]} 43. f4+ {[%clk 0:00:07.3]} 43... Kd5 {[%clk 0:00:14.4]} 44. Kf2 {[%clk
0:00:05.1]} 44... Rc3 {[%clk 0:00:14.9]} 45. Ke3 {[%clk 0:00:04.5]} 45... Nb3
{[%clk 0:00:12]} 46. Rxc2 {[%clk 0:00:03.4]} 46... Nc1 {[%clk 0:00:08.6]} 47.
Rxc3 {[%clk 0:00:02.3]} 47... Rxc3 {[%clk 0:00:08.9]} 48. Rd4+ {[%clk 0:00:03]}
48... Kc5 {[%clk 0:00:09.1]} 49. Rd8 {[%clk 0:00:02.8]} 49... Kb4 {[%clk
0:00:07.5]} 50. Kd2 {[%clk 0:00:02.6]} 50... Nb3+ {[%clk 0:00:07.1]} 51. Ke3
{[%clk 0:00:02.5]} 51... Nc5 {[%clk 0:00:07.5]} 52. Kd2 {[%clk 0:00:01.6]} 52...
Ra3 {[%clk 0:00:05.5]} 0-1

[Event "Early-Titled-Tuesday-Blitz-September-05-2023"]
[Site "Chess.com"]
[Date "2023.09.05"]
[Round "6"]
[White "dropstoneDP"]
[Black "chito89"]
[Result "1/2-1/2"]
[WhiteElo "2999"]
[BlackElo "2812"]
[TimeControl "180+1"]
[EndTime "9:06:56 PDT"]
[Termination "Game drawn by repetition"]

1. e4 {[%clk 0:02:55.4]} 1... e5 {[%clk 0:02:58.3]} 2. Nf3 {[%clk 0:02:54.6]}
2... Nc6 {[%clk 0:02:58.8]} 3. Nc3 {[%clk 0:02:54.9]} 3... Nf6 {[%clk 0:02:56]}
4. d4 {[%clk 0:02:55.2]} 4... exd4 {[%clk 0:02:56.9]} 5. Nxd4 {[%clk 0:02:55.9]}
5... Bb4 {[%clk 0:02:44.2]} 6. Nxc6 {[%clk 0:02:55.4]} 6... bxc6 {[%clk
0:02:45.1]} 7. Bd3 {[%clk 0:02:55.6]} 7... O-O {[%clk 0:02:44.5]} 8. O-O {[%clk
0:02:55.3]} 8... Re8 {[%clk 0:02:45.1]} 9. Re1 {[%clk 0:02:50.2]} 9... Rb8
{[%clk 0:02:45.1]} 10. h3 {[%clk 0:02:48.7]} 10... a5 {[%clk 0:02:36.3]} 11. e5
{[%clk 0:02:43.4]} 11... Nd5 {[%clk 0:02:35]} 12. Nxd5 {[%clk 0:02:22.7]} 12...
cxd5 {[%clk 0:02:33.3]} 13. c3 {[%clk 0:02:17.6]} 13... Bc5 {[%clk 0:02:33.8]}
14. Qh5 {[%clk 0:02:08.7]} 14... g6 {[%clk 0:02:33.2]} 15. Qh6 {[%clk
0:02:07.2]} 15... Bf8 {[%clk 0:02:30.4]} 16. Qd2 {[%clk 0:01:53.2]} 16... d6
{[%clk 0:02:27.5]} 17. exd6 {[%clk 0:01:53.2]} 17... Bxd6 {[%clk 0:02:08.6]} 18.
b3 {[%clk 0:01:41.8]} 18... Bd7 {[%clk 0:01:38.5]} 19. Bb2 {[%clk 0:01:41.4]}
19... Qh4 {[%clk 0:01:31.7]} 20. Bf1 {[%clk 0:01:37.3]} 20... Bc5 {[%clk
0:01:24.2]} 21. Rxe8+ {[%clk 0:01:27]} 21... Rxe8 {[%clk 0:01:25.1]} 22. Re1
{[%clk 0:01:26.6]} 22... Re6 {[%clk 0:01:16.2]} 23. Rxe6 {[%clk 0:01:25.6]}
23... Bxe6 {[%clk 0:01:17.1]} 24. c4 {[%clk 0:01:25.3]} 24... dxc4 {[%clk
0:01:00]} 25. Bxc4 {[%clk 0:01:21.7]} 25... Bxc4 {[%clk 0:00:54.9]} 26. bxc4
{[%clk 0:01:22.6]} 26... Kf8 {[%clk 0:00:35]} 27. a4 {[%clk 0:01:08.4]} 27...
Ke8 {[%clk 0:00:28.4]} 28. Qe2+ {[%clk 0:00:54.4]} 28... Kd7 {[%clk 0:00:28.7]}
29. Kf1 {[%clk 0:00:51.3]} 29... Qf4 {[%clk 0:00:20.1]} 30. Qg4+ {[%clk
0:00:34]} 30... Qxg4 {[%clk 0:00:17.1]} 31. hxg4 {[%clk 0:00:34.9]} 31... Kc6
{[%clk 0:00:10.9]} 32. Ke2 {[%clk 0:00:35]} 32... Bb6 {[%clk 0:00:09.6]} 33. Bc3
{[%clk 0:00:33.7]} 33... Kd6 {[%clk 0:00:04.2]} 34. f3 {[%clk 0:00:33.4]} 34...
Ke6 {[%clk 0:00:04.4]} 35. Kd3 {[%clk 0:00:33.1]} 35... f5 {[%clk 0:00:04.9]}
36. gxf5+ {[%clk 0:00:29.7]} 36... Kxf5 {[%clk 0:00:05.8]} 37. c5 {[%clk
0:00:29.7]} 37... Bxc5 {[%clk 0:00:05.8]} 38. Bxa5 {[%clk 0:00:30.4]} 38... c6
{[%clk 0:00:05.9]} 39. Kc4 {[%clk 0:00:30.1]} 39... Ba7 {[%clk 0:00:04.9]} 40.
Bb4 {[%clk 0:00:29.6]} 40... Kf4 {[%clk 0:00:03.5]} 41. Bc5 {[%clk 0:00:29.4]}
41... Bb8 {[%clk 0:00:04.1]} 42. Bf2 {[%clk 0:00:18.7]} 42... g5 {[%clk
0:00:04.5]} 43. a5 {[%clk 0:00:18.5]} 43... h5 {[%clk 0:00:05.1]} 44. a6 {[%clk
0:00:17.9]} 44... h4 {[%clk 0:00:05.7]} 45. Bb6 {[%clk 0:00:11.7]} 45... Kg3
{[%clk 0:00:05.6]} 46. Bc7+ {[%clk 0:00:11.5]} 46... Bxc7 {[%clk 0:00:06.2]} 47.
a7 {[%clk 0:00:12.1]} 47... Kxg2 {[%clk 0:00:06.9]} 48. a8=Q {[%clk 0:00:12.8]}
48... h3 {[%clk 0:00:05.7]} 49. Qxc6 {[%clk 0:00:13.1]} 49... Bf4 {[%clk
0:00:05.6]} 50. Kd3 {[%clk 0:00:04.8]} 50... h2 {[%clk 0:00:05.9]} 51. Qc2+
{[%clk 0:00:05.4]} 51... Kg1 {[%clk 0:00:04.1]} 52. Qd1+ {[%clk 0:00:05.7]}
52... Kg2 {[%clk 0:00:04.5]} 53. Qe2+ {[%clk 0:00:06.1]} 53... Kg1 {[%clk
0:00:04.9]} 54. Qe1+ {[%clk 0:00:05.9]} 54... Kg2 {[%clk 0:00:05.4]} 55. Qe2+
{[%clk 0:00:06.5]} 55... Kg1 {[%clk 0:00:05.9]} 56. Qe1+ {[%clk 0:00:06.8]}
56... Kg2 {[%clk 0:00:06.3]} 57. Qe2+ {[%clk 0:00:07.2]} 1/2-1/2